[Event "*** Titled Tuesday Blitz"]
[Site "Chess.com"]
[Date "2020.05.05"]
[Round "5"]
[White "Kingsman132"]
[Black "Trankuilizer"]
[Result "0-1"]
[WhiteElo "2363"]
[BlackElo "2520"]
[TimeControl "180+1"]
[EndTime "10:57:50 PDT"]
[Termination "Trankuilizer won by resignation"]

1. d4 {[%clk 0:03:00.9]} 1... Nf6 {[%clk 0:02:56.3]} 2. Nf3 {[%clk 0:02:55.5]}
2... g6 {[%clk 0:02:55.7]} 3. c4 {[%clk 0:02:53]} 3... Bg7 {[%clk 0:02:55.1]} 4.
Nc3 {[%clk 0:02:53.5]} 4... O-O {[%clk 0:02:55.5]} 5. e3 {[%clk 0:02:52.6]} 5...
d6 {[%clk 0:02:54.6]} 6. Bd3 {[%clk 0:02:52.3]} 6... Nbd7 {[%clk 0:02:55.1]} 7.
O-O {[%clk 0:02:51.5]} 7... e5 {[%clk 0:02:55.7]} 8. dxe5 {[%clk 0:02:46.4]}
8... dxe5 {[%clk 0:02:55.7]} 9. Bc2 {[%clk 0:02:46.4]} 9... c6 {[%clk
0:02:55.7]} 10. h3 {[%clk 0:02:43.6]} 10... Re8 {[%clk 0:02:55.1]} 11. Qe2
{[%clk 0:02:37.1]} 11... Qe7 {[%clk 0:02:53.8]} 12. Rd1 {[%clk 0:02:30.9]} 12...
h5 {[%clk 0:02:24.8]} 13. Nd2 {[%clk 0:02:21.3]} 13... Nc5 {[%clk 0:02:16.7]}
14. a3 {[%clk 0:02:14.7]} 14... a5 {[%clk 0:02:13.4]} 15. e4 {[%clk 0:02:11.3]}
15... h4 {[%clk 0:01:57.5]} 16. Nf3 {[%clk 0:02:09.9]} 16... Nh5 {[%clk
0:01:57.5]} 17. Bg5 {[%clk 0:02:04.8]} 17... Bf6 {[%clk 0:01:57.3]} 18. Be3
{[%clk 0:02:01.3]} 18... Ne6 {[%clk 0:01:56.5]} 19. Na4 {[%clk 0:01:30]} 19...
Nhf4 {[%clk 0:01:52.6]} 20. Qd2 {[%clk 0:01:28]} 20... Rd8 {[%clk 0:01:48.7]}
21. Qe1 {[%clk 0:01:25.2]} 21... Bd7 {[%clk 0:01:10.8]} 22. Bb6 {[%clk
0:01:19.8]} 22... Rf8 {[%clk 0:00:36.6]} 23. Qd2 {[%clk 0:01:15.5]} 23... Bc8
{[%clk 0:00:30.5]} 24. Qd6 {[%clk 0:00:57.7]} 24... Qxd6 {[%clk 0:00:23.3]} 25.
Rxd6 {[%clk 0:00:58.6]} 25... Kg7 {[%clk 0:00:19.9]} 26. Rad1 {[%clk 0:00:56.9]}
26... Ng5 {[%clk 0:00:19]} 27. Nxg5 {[%clk 0:00:52.4]} 27... Bxg5 {[%clk
0:00:19.9]} 28. Kf1 {[%clk 0:00:50.5]} 28... Be6 {[%clk 0:00:18.7]} 29. b3
{[%clk 0:00:45.6]} 29... Be7 {[%clk 0:00:18.2]} 30. R6d2 {[%clk 0:00:42.1]}
30... Bxa3 {[%clk 0:00:18.6]} 31. Bc5 {[%clk 0:00:41.7]} 31... Bb4 {[%clk
0:00:18.6]} 32. Bxb4 {[%clk 0:00:36]} 32... axb4 {[%clk 0:00:19.5]} 33. Rd6
{[%clk 0:00:35.9]} 33... Rfe8 {[%clk 0:00:17]} 34. c5 {[%clk 0:00:30]} 34... Ra5
{[%clk 0:00:15.5]} 35. Rd8 {[%clk 0:00:23.5]} 35... Rxd8 {[%clk 0:00:15.1]} 36.
Rxd8 {[%clk 0:00:24.4]} 36... Kf6 {[%clk 0:00:14.6]} 37. Rd6 {[%clk 0:00:22.6]}
37... Ra8 {[%clk 0:00:13.2]} 38. Rd2 {[%clk 0:00:19.6]} 38... g5 {[%clk
0:00:13]} 39. Kg1 {[%clk 0:00:18.7]} 39... Ng6 {[%clk 0:00:12.9]} 40. Kf1 {[%clk
0:00:18.2]} 40... Nf8 {[%clk 0:00:13]} 41. Ke2 {[%clk 0:00:18.2]} 41... Nd7
{[%clk 0:00:13.4]} 42. Nb6 {[%clk 0:00:10.5]} 42... Nxb6 {[%clk 0:00:12.6]} 43.
cxb6 {[%clk 0:00:11.4]} 43... Ra6 {[%clk 0:00:13.5]} 44. Rd8 {[%clk 0:00:09.9]}
44... Rxb6 {[%clk 0:00:14]} 45. Rb8 {[%clk 0:00:09.9]} 45... c5 {[%clk
0:00:14.2]} 46. Kd3 {[%clk 0:00:09.9]} 46... Rd6+ {[%clk 0:00:13.9]} 47. Ke2
{[%clk 0:00:10.4]} 47... b6 {[%clk 0:00:14.8]} 48. Rb7 {[%clk 0:00:09.6]} 48...
Rc6 {[%clk 0:00:12.6]} 49. Rb8 {[%clk 0:00:08.6]} 49... c4 {[%clk 0:00:12.4]}
50. bxc4 {[%clk 0:00:09.5]} 50... Bxc4+ {[%clk 0:00:13]} 51. Bd3 {[%clk
0:00:09.3]} 51... Bxd3+ {[%clk 0:00:10.1]} 52. Kxd3 {[%clk 0:00:10.2]} 52... b3
{[%clk 0:00:11]} 53. Ra8 {[%clk 0:00:07.7]} 53... b2 {[%clk 0:00:11.2]} 0-1

[Event "*** Titled Tuesday Blitz"]
[Site "Chess.com"]
[Date "2020.05.05"]
[Round "5"]
[White "marszach123"]
[Black "MFBerna"]
[Result "0-1"]
[WhiteElo "2141"]
[BlackElo "2323"]
[TimeControl "180+1"]
[EndTime "10:57:50 PDT"]
[Termination "MFBerna won on time"]

1. e4 {[%clk 0:03:00.9]} 1... c5 {[%clk 0:02:59.3]} 2. Nf3 {[%clk 0:02:59.9]}
2... d6 {[%clk 0:02:58.4]} 3. d4 {[%clk 0:03:00.3]} 3... cxd4 {[%clk 0:02:55.2]}
4. Nxd4 {[%clk 0:03:00.6]} 4... Nf6 {[%clk 0:02:55.8]} 5. Nc3 {[%clk 0:03:00.2]}
5... a6 {[%clk 0:02:56]} 6. Bg5 {[%clk 0:02:59.7]} 6... e6 {[%clk 0:02:56.1]} 7.
f4 {[%clk 0:02:59.6]} 7... Be7 {[%clk 0:02:56.5]} 8. Qf3 {[%clk 0:02:58.8]} 8...
Nbd7 {[%clk 0:02:56.9]} 9. O-O-O {[%clk 0:02:58.6]} 9... Qc7 {[%clk 0:02:56.9]}
10. g4 {[%clk 0:02:58]} 10... b5 {[%clk 0:02:56.7]} 11. Bxf6 {[%clk 0:02:56.4]}
11... Nxf6 {[%clk 0:02:48.7]} 12. e5 {[%clk 0:02:56.1]} 12... Bb7 {[%clk
0:02:49]} 13. Qg3 {[%clk 0:02:55.8]} 13... dxe5 {[%clk 0:02:38]} 14. fxe5 {[%clk
0:02:55.5]} 14... Bxh1 {[%clk 0:02:33.6]} 15. Ndxb5 {[%clk 0:01:55.7]} 15...
axb5 {[%clk 0:02:34.5]} 16. Bxb5+ {[%clk 0:01:55.4]} 16... Kf8 {[%clk
0:02:31.5]} 17. exf6 {[%clk 0:01:50.7]} 17... Qxg3 {[%clk 0:02:10.2]} 18. fxe7+
{[%clk 0:01:49.7]} 18... Kxe7 {[%clk 0:02:11.1]} 19. hxg3 {[%clk 0:01:49.5]}
19... Bf3 {[%clk 0:02:01.8]} 20. Rd7+ {[%clk 0:01:40.7]} 20... Kf6 {[%clk
0:02:00.6]} 21. g5+ {[%clk 0:01:39.7]} 21... Kg6 {[%clk 0:01:19.3]} 22. Bd3+
{[%clk 0:01:36.3]} 22... f5 {[%clk 0:01:15.7]} 23. gxf6+ {[%clk 0:01:21.9]}
23... Kxf6 {[%clk 0:01:15.8]} 24. a4 {[%clk 0:01:09.5]} 24... h5 {[%clk
0:01:09.9]} 25. b4 {[%clk 0:01:01.3]} 25... g5 {[%clk 0:01:08.2]} 26. a5 {[%clk
0:00:43.1]} 26... h4 {[%clk 0:01:01.9]} 27. gxh4 {[%clk 0:00:43.2]} 27... gxh4
{[%clk 0:01:01.6]} 28. Ne4+ {[%clk 0:00:41.3]} 28... Ke5 {[%clk 0:00:56.7]} 29.
Nf2 {[%clk 0:00:33.7]} 29... Rag8 {[%clk 0:00:44.2]} 30. Rf7 {[%clk 0:00:32.2]}
30... Rf8 {[%clk 0:00:31.7]} 31. Rxf8 {[%clk 0:00:28.2]} 31... Rxf8 {[%clk
0:00:32.6]} 32. a6 {[%clk 0:00:28.2]} 32... Ba8 {[%clk 0:00:27.8]} 33. Nh3
{[%clk 0:00:23]} 33... Rf3 {[%clk 0:00:21.9]} 34. Ng1 {[%clk 0:00:17.3]} 34...
Rg3 {[%clk 0:00:21.5]} 35. Ne2 {[%clk 0:00:17.3]} 35... Rg2 {[%clk 0:00:17.3]}
36. b5 {[%clk 0:00:12.1]} 36... h3 {[%clk 0:00:17.4]} 37. b6 {[%clk 0:00:12.4]}
37... h2 {[%clk 0:00:16.9]} 38. b7 {[%clk 0:00:11.7]} 38... h1=Q+ {[%clk
0:00:17.2]} 39. Kb2 {[%clk 0:00:11.5]} 39... Bxb7 {[%clk 0:00:13.8]} 40. axb7
{[%clk 0:00:11.2]} 40... Rg8 {[%clk 0:00:11.7]} 41. Ba6 {[%clk 0:00:07.6]} 41...
Rb8 {[%clk 0:00:10.2]} 42. Nc3 {[%clk 0:00:06.1]} 42... Rxb7+ {[%clk 0:00:10.4]}
43. Bxb7 {[%clk 0:00:05.7]} 43... Qxb7+ {[%clk 0:00:11.3]} 44. Kc1 {[%clk
0:00:04.7]} 44... Kd4 {[%clk 0:00:11.1]} 45. Ne2+ {[%clk 0:00:03.1]} 45... Ke3
{[%clk 0:00:11.4]} 46. Nc3 {[%clk 0:00:03]} 46... Qc6 {[%clk 0:00:11.1]} 47.
Nd1+ {[%clk 0:00:02.6]} 47... Kf3 {[%clk 0:00:11.8]} 48. Kd2 {[%clk 0:00:02.6]}
48... e5 {[%clk 0:00:12.2]} 49. Ne3 {[%clk 0:00:02.2]} 49... Qd7+ {[%clk
0:00:09.5]} 0-1

[Event "*** Titled Tuesday Blitz"]
[Site "Chess.com"]
[Date "2020.05.05"]
[Round "5"]
[White "Aradej"]
[Black "rasmussvane"]
[Result "1/2-1/2"]
[WhiteElo "2545"]
[BlackElo "2857"]
[TimeControl "180+1"]
[EndTime "10:57:51 PDT"]
[Termination "Game drawn by repetition"]

1. e4 {[%clk 0:03:00.9]} 1... c6 {[%clk 0:02:59.7]} 2. d4 {[%clk 0:03:00.8]}
2... d5 {[%clk 0:03:00.6]} 3. exd5 {[%clk 0:03:01.1]} 3... cxd5 {[%clk
0:03:01.5]} 4. Bd3 {[%clk 0:03:01.6]} 4... Nc6 {[%clk 0:03:02]} 5. c3 {[%clk
0:03:01.6]} 5... Nf6 {[%clk 0:03:02.6]} 6. h3 {[%clk 0:03:01.2]} 6... g6 {[%clk
0:03:01.7]} 7. Nf3 {[%clk 0:03:01.2]} 7... Bf5 {[%clk 0:03:01.5]} 8. Be2 {[%clk
0:03:00.7]} 8... Bg7 {[%clk 0:03:01]} 9. O-O {[%clk 0:03:00.9]} 9... O-O {[%clk
0:03:01.4]} 10. Re1 {[%clk 0:03:00.9]} 10... Qc7 {[%clk 0:03:01]} 11. Bf1 {[%clk
0:02:59.5]} 11... a6 {[%clk 0:02:56.9]} 12. a4 {[%clk 0:02:59.4]} 12... Rfe8
{[%clk 0:02:50.7]} 13. Nbd2 {[%clk 0:02:59.1]} 13... Rab8 {[%clk 0:02:49.9]} 14.
Nb3 {[%clk 0:02:54.7]} 14... Ne4 {[%clk 0:02:46.3]} 15. Nfd2 {[%clk 0:02:48.8]}
15... e5 {[%clk 0:02:29.4]} 16. dxe5 {[%clk 0:02:48.3]} 16... Nxe5 {[%clk
0:02:26.9]} 17. Nd4 {[%clk 0:02:48.1]} 17... Nxd2 {[%clk 0:02:19.2]} 18. Bxd2
{[%clk 0:02:47.7]} 18... Bd7 {[%clk 0:01:55.6]} 19. Bf4 {[%clk 0:02:46.8]} 19...
Rbd8 {[%clk 0:01:55.5]} 20. Qd2 {[%clk 0:02:44.4]} 20... Qc8 {[%clk 0:01:36.1]}
21. Bg5 {[%clk 0:02:41.9]} 21... f6 {[%clk 0:01:34.6]} 22. Bf4 {[%clk
0:02:39.9]} 22... Nc4 {[%clk 0:01:27.3]} 23. Qc2 {[%clk 0:02:38.4]} 23... Qc5
{[%clk 0:01:11.2]} 24. Qb3 {[%clk 0:02:36.1]} 24... Na5 {[%clk 0:01:10.6]} 25.
Qa2 {[%clk 0:02:34]} 25... Nc6 {[%clk 0:01:01]} 26. Be3 {[%clk 0:02:26.7]} 26...
Qd6 {[%clk 0:00:58.8]} 27. Rad1 {[%clk 0:02:25.5]} 27... Bc8 {[%clk 0:00:56.7]}
28. Nf3 {[%clk 0:02:22.9]} 28... Kh8 {[%clk 0:00:53.4]} 29. Qb3 {[%clk
0:02:19.5]} 29... Re7 {[%clk 0:00:27.5]} 30. Qb6 {[%clk 0:02:18.1]} 30... Qd7
{[%clk 0:00:19]} 31. Bc5 {[%clk 0:02:14.1]} 31... Rxe1 {[%clk 0:00:18.3]} 32.
Rxe1 {[%clk 0:02:14.3]} 32... Re8 {[%clk 0:00:18.8]} 33. Rd1 {[%clk 0:02:14.4]}
33... Qf7 {[%clk 0:00:17.6]} 34. Be3 {[%clk 0:02:11.7]} 34... Kg8 {[%clk
0:00:11.7]} 35. Qc5 {[%clk 0:02:11.5]} 35... Be6 {[%clk 0:00:11.3]} 36. Nd4
{[%clk 0:02:11.6]} 36... Nxd4 {[%clk 0:00:11.5]} 37. Bxd4 {[%clk 0:02:11.8]}
37... Bh6 {[%clk 0:00:10.9]} 38. Qb6 {[%clk 0:02:10.2]} 38... Kg7 {[%clk
0:00:09.8]} 39. a5 {[%clk 0:02:10.2]} 39... Bf4 {[%clk 0:00:10]} 40. Qb3 {[%clk
0:02:07.1]} 40... Qc7 {[%clk 0:00:09]} 41. Qb6 {[%clk 0:02:05]} 41... Bf7 {[%clk
0:00:07.8]} 42. Qxc7 {[%clk 0:02:03]} 42... Bxc7 {[%clk 0:00:07.5]} 43. b4
{[%clk 0:02:01.6]} 43... Rc8 {[%clk 0:00:07.1]} 44. Re1 {[%clk 0:01:52.1]} 44...
Bd6 {[%clk 0:00:07.4]} 45. g3 {[%clk 0:01:50.6]} 45... Re8 {[%clk 0:00:07.6]}
46. Rd1 {[%clk 0:01:48.4]} 46... Be5 {[%clk 0:00:05.7]} 47. Bg2 {[%clk
0:01:48.6]} 47... Rd8 {[%clk 0:00:05.2]} 48. Kf1 {[%clk 0:01:47.8]} 48... Kf8
{[%clk 0:00:04.8]} 49. Ke2 {[%clk 0:01:47.9]} 49... Ke7 {[%clk 0:00:04.9]} 50.
f4 {[%clk 0:01:47.9]} 50... Bxd4 {[%clk 0:00:04.8]} 51. Rxd4 {[%clk 0:01:48]}
51... Be6 {[%clk 0:00:05.4]} 52. Kd2 {[%clk 0:01:47.9]} 52... g5 {[%clk
0:00:05.6]} 53. fxg5 {[%clk 0:01:46.8]} 53... fxg5 {[%clk 0:00:06.5]} 54. h4
{[%clk 0:01:47.1]} 54... h6 {[%clk 0:00:06.7]} 55. Bf3 {[%clk 0:01:42.7]} 55...
Rd7 {[%clk 0:00:06.9]} 56. Be2 {[%clk 0:01:41.9]} 56... Kf6 {[%clk 0:00:07.2]}
57. Bf3 {[%clk 0:01:39.4]} 57... Ke5 {[%clk 0:00:07.2]} 58. Ke3 {[%clk
0:01:39.5]} 58... Rc7 {[%clk 0:00:07.3]} 59. Kd2 {[%clk 0:01:38.9]} 59... Rd7
{[%clk 0:00:07.4]} 60. Rd3 {[%clk 0:01:34]} 60... Rf7 {[%clk 0:00:07.6]} 61. Ke3
{[%clk 0:01:29.7]} 61... Rc7 {[%clk 0:00:07.3]} 62. hxg5 {[%clk 0:01:25.9]}
62... hxg5 {[%clk 0:00:07.2]} 63. Kd2 {[%clk 0:01:25.8]} 63... Rd7 {[%clk
0:00:07.4]} 64. Rd4 {[%clk 0:01:25.5]} 64... Rf7 {[%clk 0:00:07.2]} 65. Rd3
{[%clk 0:01:25.5]} 65... Rc7 {[%clk 0:00:07.4]} 66. Re3+ {[%clk 0:01:25.5]}
66... Kd6 {[%clk 0:00:07.3]} 67. Be2 {[%clk 0:01:24.3]} 67... Rf7 {[%clk
0:00:07]} 68. c4 {[%clk 0:01:22.4]} 68... dxc4 {[%clk 0:00:06.5]} 69. Rxe6+
{[%clk 0:01:22.2]} 69... Kxe6 {[%clk 0:00:07.2]} 70. Bxc4+ {[%clk 0:01:22.4]}
70... Ke7 {[%clk 0:00:07.5]} 71. Bxf7 {[%clk 0:01:22.9]} 71... Kxf7 {[%clk
0:00:08.4]} 72. Kd3 {[%clk 0:01:22.2]} 72... Ke6 {[%clk 0:00:02.9]} 73. Ke4
{[%clk 0:01:22]} 73... Kf6 {[%clk 0:00:03.3]} 74. g4 {[%clk 0:01:17.3]} 74...
Ke6 {[%clk 0:00:03.5]} 75. Kd4 {[%clk 0:01:17.5]} 75... Kd6 {[%clk 0:00:04]} 76.
Ke4 {[%clk 0:01:09.4]} 76... Ke6 {[%clk 0:00:04.2]} 77. Kd4 {[%clk 0:01:09.5]}
77... Kd6 {[%clk 0:00:04.7]} 78. Ke4 {[%clk 0:01:09.7]} 78... Ke6 {[%clk
0:00:05.2]} 1/2-1/2

[Event "*** Titled Tuesday Blitz"]
[Site "Chess.com"]
[Date "2020.05.05"]
[Round "5"]
[White "Ladislav1969"]
[Black "Alohamora11"]
[Result "0-1"]
[WhiteElo "2352"]
[BlackElo "2507"]
[TimeControl "180+1"]
[EndTime "10:57:53 PDT"]
[Termination "Alohamora11 won on time"]

1. e4 {[%clk 0:03:00.9]} 1... c5 {[%clk 0:03:00.1]} 2. d4 {[%clk 0:03:01.1]}
2... cxd4 {[%clk 0:03:00.8]} 3. c3 {[%clk 0:03:01.7]} 3... g6 {[%clk 0:03:00.4]}
4. cxd4 {[%clk 0:03:01]} 4... d5 {[%clk 0:03:00.9]} 5. Nc3 {[%clk 0:02:59.8]}
5... dxe4 {[%clk 0:02:54.2]} 6. Bc4 {[%clk 0:02:59.6]} 6... Nf6 {[%clk
0:02:53.1]} 7. Qb3 {[%clk 0:02:58.1]} 7... e6 {[%clk 0:02:48.2]} 8. d5 {[%clk
0:02:58.3]} 8... exd5 {[%clk 0:02:41.3]} 9. Nxd5 {[%clk 0:02:58.2]} 9... Nxd5
{[%clk 0:02:32.2]} 10. Bxd5 {[%clk 0:02:57.5]} 10... Qe7 {[%clk 0:02:23.2]} 11.
Qc3 {[%clk 0:02:44]} 11... Qb4 {[%clk 0:01:58]} 12. Bd2 {[%clk 0:02:43.9]} 12...
Qxc3 {[%clk 0:01:55.5]} 13. Bxc3 {[%clk 0:02:44.1]} 13... Rg8 {[%clk 0:01:56.4]}
14. Bxe4 {[%clk 0:02:39.1]} 14... Nc6 {[%clk 0:01:54.6]} 15. Nf3 {[%clk
0:02:32.3]} 15... Be7 {[%clk 0:01:54]} 16. O-O-O {[%clk 0:02:24.9]} 16... Bd7
{[%clk 0:01:53.3]} 17. Rhe1 {[%clk 0:02:21]} 17... Nd8 {[%clk 0:01:22.8]} 18.
Bd5 {[%clk 0:01:29.3]} 18... Be6 {[%clk 0:01:18.8]} 19. Bxe6 {[%clk 0:01:17.4]}
19... Nxe6 {[%clk 0:01:17.4]} 20. Nd4 {[%clk 0:01:17.3]} 20... Nxd4 {[%clk
0:00:17.5]} 21. Rxd4 {[%clk 0:01:15.5]} 21... Rc8 {[%clk 0:00:11.7]} 22. Kb1
{[%clk 0:00:54.5]} 22... Rc7 {[%clk 0:00:12]} 23. Bb4 {[%clk 0:00:50.7]} 23...
f5 {[%clk 0:00:10.7]} 24. Rd5 {[%clk 0:00:30.5]} 24... Kf7 {[%clk 0:00:10.2]}
25. Bc3 {[%clk 0:00:28.4]} 25... Rd8 {[%clk 0:00:07.4]} 26. Rxd8 {[%clk
0:00:17.1]} 26... Bxd8 {[%clk 0:00:07.3]} 27. Kc2 {[%clk 0:00:16]} 27... Bf6
{[%clk 0:00:07.2]} 28. Kb3 {[%clk 0:00:14.2]} 28... Bxc3 {[%clk 0:00:07.3]} 29.
bxc3 {[%clk 0:00:14.3]} 29... g5 {[%clk 0:00:08]} 30. c4 {[%clk 0:00:12.9]}
30... Rd7 {[%clk 0:00:08]} 31. Kc3 {[%clk 0:00:12.9]} 31... Kf6 {[%clk
0:00:08.5]} 32. c5 {[%clk 0:00:12.3]} 32... Rc7 {[%clk 0:00:06.9]} 33. Kb4
{[%clk 0:00:11.8]} 33... Rd7 {[%clk 0:00:07.1]} 34. Kc4 {[%clk 0:00:11]} 34...
Rd2 {[%clk 0:00:06.6]} 35. a4 {[%clk 0:00:08]} 35... Rxf2 {[%clk 0:00:06.4]} 36.
Re8 {[%clk 0:00:05.8]} 36... Rxg2 {[%clk 0:00:05.7]} 37. Rb8 {[%clk 0:00:05.6]}
37... Rc2+ {[%clk 0:00:05.3]} 38. Kd5 {[%clk 0:00:05.5]} 38... Rd2+ {[%clk
0:00:05.9]} 39. Kc4 {[%clk 0:00:05.5]} 39... Rb2 {[%clk 0:00:06.4]} 40. c6
{[%clk 0:00:05]} 40... Rc2+ {[%clk 0:00:06.7]} 41. Kd3 {[%clk 0:00:04.5]} 41...
Rxc6 {[%clk 0:00:06.8]} 42. Rxb7 {[%clk 0:00:05.4]} 42... Ra6 {[%clk 0:00:07.2]}
43. Rb4 {[%clk 0:00:04.7]} 43... h5 {[%clk 0:00:07.5]} 44. Ke3 {[%clk
0:00:04.9]} 44... h4 {[%clk 0:00:07]} 45. Kf3 {[%clk 0:00:04.9]} 45... Kg6
{[%clk 0:00:07.6]} 46. Rc4 {[%clk 0:00:04.1]} 46... Kh5 {[%clk 0:00:08]} 47. Rb4
{[%clk 0:00:04.1]} 47... Ra5 {[%clk 0:00:07.9]} 48. Rc4 {[%clk 0:00:04]} 48...
Rd5 {[%clk 0:00:07.9]} 49. Rc8 {[%clk 0:00:02.7]} 49... Rd3+ {[%clk 0:00:07.3]}
50. Kg2 {[%clk 0:00:01.8]} 50... Ra3 {[%clk 0:00:07.4]} 0-1

[Event "*** Titled Tuesday Blitz"]
[Site "Chess.com"]
[Date "2020.05.05"]
[Round "5"]
[White "Vesper2018"]
[Black "Saxar85"]
[Result "1-0"]
[WhiteElo "2179"]
[BlackElo "2639"]
[TimeControl "180+1"]
[EndTime "10:57:54 PDT"]
[Termination "Vesper2018 won by resignation"]

1. e4 {[%clk 0:02:58.7]} 1... e5 {[%clk 0:02:59.2]} 2. Nf3 {[%clk 0:02:58.2]}
2... Nc6 {[%clk 0:02:59.3]} 3. Bb5 {[%clk 0:02:57.9]} 3... a6 {[%clk 0:02:58.6]}
4. Ba4 {[%clk 0:02:57.6]} 4... Nf6 {[%clk 0:02:53]} 5. O-O {[%clk 0:02:57.1]}
5... Be7 {[%clk 0:02:53.1]} 6. Re1 {[%clk 0:02:54.2]} 6... b5 {[%clk 0:02:52.8]}
7. Bb3 {[%clk 0:02:54.4]} 7... d6 {[%clk 0:02:52.7]} 8. c3 {[%clk 0:02:54.1]}
8... O-O {[%clk 0:02:52.3]} 9. h3 {[%clk 0:02:54.4]} 9... Nb8 {[%clk 0:02:51.4]}
10. d4 {[%clk 0:02:54.3]} 10... Nbd7 {[%clk 0:02:50.8]} 11. Nbd2 {[%clk
0:02:54.3]} 11... c5 {[%clk 0:02:51]} 12. Nf1 {[%clk 0:02:42.2]} 12... Re8
{[%clk 0:02:50.4]} 13. Ng3 {[%clk 0:02:34.5]} 13... Bf8 {[%clk 0:02:50]} 14. d5
{[%clk 0:02:31.2]} 14... c4 {[%clk 0:02:48.8]} 15. Bc2 {[%clk 0:02:31.1]} 15...
Nc5 {[%clk 0:02:48.6]} 16. Be3 {[%clk 0:02:17.9]} 16... Qc7 {[%clk 0:02:47.7]}
17. Nh2 {[%clk 0:02:16.2]} 17... a5 {[%clk 0:02:44.7]} 18. f4 {[%clk 0:02:14.3]}
18... exf4 {[%clk 0:02:39.1]} 19. Bxf4 {[%clk 0:02:14.5]} 19... Nfd7 {[%clk
0:02:39]} 20. Ng4 {[%clk 0:02:04.5]} 20... Ne5 {[%clk 0:02:38.5]} 21. Bxe5
{[%clk 0:01:55.1]} 21... dxe5 {[%clk 0:02:37.5]} 22. Nf5 {[%clk 0:01:55.1]}
22... Ra6 {[%clk 0:02:29]} 23. d6 {[%clk 0:01:50.1]} 23... Bxd6 {[%clk
0:02:17.8]} 24. Nf6+ {[%clk 0:01:47.1]} 24... Kf8 {[%clk 0:01:39.6]} 25. Nxh7+
{[%clk 0:01:46.6]} 25... Kg8 {[%clk 0:01:36.9]} 26. Nf6+ {[%clk 0:01:46.9]}
26... Kf8 {[%clk 0:01:37.1]} 27. Qh5 {[%clk 0:01:28.8]} 27... Bxf5 {[%clk
0:01:32.8]} 28. Qh8+ {[%clk 0:01:10.3]} 28... Ke7 {[%clk 0:01:32.5]} 29. Qxe8+
{[%clk 0:01:09.7]} 29... Kxf6 {[%clk 0:01:31.7]} 30. Rf1 {[%clk 0:01:04.3]}
30... g6 {[%clk 0:00:46.1]} 31. exf5 {[%clk 0:01:04.3]} 31... g5 {[%clk
0:00:45.2]} 32. Qh8+ {[%clk 0:01:00.8]} 32... Ke7 {[%clk 0:00:45.2]} 33. Qg7
{[%clk 0:00:41.6]} 33... Kd8 {[%clk 0:00:44.7]} 34. Qg8+ {[%clk 0:00:37.6]}
34... Kd7 {[%clk 0:00:40.2]} 35. Qxf7+ {[%clk 0:00:37.3]} 35... Kc6 {[%clk
0:00:40.5]} 36. Qg6 {[%clk 0:00:29.7]} 36... Kb7 {[%clk 0:00:37.4]} 37. f6
{[%clk 0:00:30.2]} 37... e4 {[%clk 0:00:28.4]} 38. Bxe4+ {[%clk 0:00:27.2]}
38... Ka7 {[%clk 0:00:28.6]} 39. Qf5 {[%clk 0:00:23.1]} 39... Bf4 {[%clk
0:00:21.5]} 40. f7 {[%clk 0:00:17.7]} 40... Bd6 {[%clk 0:00:19.5]} 41. Bd5
{[%clk 0:00:15.3]} 41... Bf8 {[%clk 0:00:18.5]} 42. Rae1 {[%clk 0:00:15]} 42...
Nd3 {[%clk 0:00:17.6]} 43. Re8 {[%clk 0:00:14.3]} 43... Qc5+ {[%clk 0:00:17.1]}
44. Kh1 {[%clk 0:00:13.9]} 44... Rd6 {[%clk 0:00:16.7]} 45. Ra8+ {[%clk
0:00:13.3]} 45... Kb6 {[%clk 0:00:16.4]} 46. Rb8+ {[%clk 0:00:13.5]} 46... Ka7
{[%clk 0:00:16.2]} 47. Rb7+ {[%clk 0:00:13.8]} 47... Ka6 {[%clk 0:00:16.2]} 48.
Rd7 {[%clk 0:00:10.2]} 48... Rxd7 {[%clk 0:00:10.5]} 49. Qxd7 {[%clk 0:00:10]}
49... a4 {[%clk 0:00:09.5]} 50. Qb7+ {[%clk 0:00:09]} 50... Ka5 {[%clk
0:00:09.5]} 51. Qa8+ {[%clk 0:00:08.7]} 51... Kb6 {[%clk 0:00:09.8]} 52. Rf6+
{[%clk 0:00:08.7]} 52... Bd6 {[%clk 0:00:08.2]} 53. f8=Q {[%clk 0:00:06.8]}
53... Nf2+ {[%clk 0:00:07.3]} 54. Rxf2 {[%clk 0:00:07]} 54... Bxf8 {[%clk
0:00:06.8]} 55. Rf6+ {[%clk 0:00:07.2]} 1-0